fUSD/lending_fUSD_20240729
["ID","MTS","AMOUNT","RATE_DAILY","PERIOD"]
[333511024,1722221489766,-500.0,0.00010999,2]
[333511025,1722221489776,-500.0,0.00010999,2]
[333511026,1722221489785,-500.0,0.00010999,2]
[333511027,1722221489795,-500.0,0.00010999,2]
[333511028,1722221489804,-500.0,0.00010999,2]
[333511029,1722221489814,-500.0,0.00010999,2]
[333511030,1722221489824,-318.22951566,0.00010999,2]
[333511031,1722221489833,-509.3987636,0.00010999,2]
[333511032,1722221489842,-500.0,0.00010999,2]
[333511033,1722221489852,-565.23628752,0.00010999,2]
[333511034,1722221489862,-514.16852519,0.00010999,2]
[333511035,1722221489871,-500.0,0.00010999,2]
[333511036,1722221489881,-500.0,0.00010999,2]
[333511037,1722221489890,-500.0,0.00010999,2]
[333511038,1722221489900,-500.0,0.00010999,2]
[333511039,1722221489910,-500.0,0.00010999,2]
[333511040,1722221489920,-165.81065956,0.00010999,2]
[333511041,1722221489929,-500.0,0.00010999,2]
[333511042,1722221489939,-513.09578579,0.00010999,2]
[333511043,1722221489948,-503.402927,0.00010999,2]
[333511044,1722221489958,-405.20972952,0.00010999,2]
[333511045,1722221489967,-504.83,0.00010999,2]
[333511046,1722221489976,-500.0,0.00010999,2]
[333511047,1722221489985,-500.0,0.00010999,2]
[333511048,1722221489995,-170.12,0.00010999,2]
[333511049,1722221490004,-500.0,0.00010999,2]
[333511050,1722221490013,-500.0,0.00010999,2]
[333511051,1722221490022,-500.0,0.00010999,2]
[333511052,1722221490032,-500.0,0.00010999,2]
[333511053,1722221490041,-500.0,0.00010999,2]
[333511054,1722221490050,-500.0,0.00010999,2]
[333511055,1722221490059,-500.0,0.00010999,2]
[333511056,1722221490068,-500.0,0.00010999,2]
[333511057,1722221490077,-500.0,0.00010999,2]
[333511058,1722221490087,-500.0,0.00010999,2]
[333511059,1722221490253,-194.9982683,0.00010999,2]
[333511060,1722221490263,-535.66917729,0.00010999,2]
[333511061,1722221490273,-501.38869305,0.00010999,2]
[333511062,1722221490283,-514.27542917,0.00010999,2]
[333511063,1722221490293,-500.0,0.00010999,2]
[333511064,1722221490302,-501.87064012,0.00010999,2]
[333511065,1722221490312,-500.0,0.00010999,2]
[333511066,1722221490321,-500.0,0.00010999,2]
[333511067,1722221490331,-158.79649631,0.00010999,2]
[333511068,1722221490342,-500.0,0.00010999,2]
[333511069,1722221490351,-500.0,0.00010999,2]
[333511070,1722221490361,-500.0,0.00010999,2]
[333511071,1722221490371,-500.0,0.00010999,2]
[333511072,1722221490381,-500.0,0.00010999,2]
[333511073,1722221490392,-500.0,0.00010999,2]
[333511074,1722221490402,-500.0,0.00010999,2]
[333511075,1722221490413,-500.0,0.00010999,2]
[333511076,1722221490425,-516.90003198,0.00010999,2]
[333511077,1722221490435,-543.45435104,0.00010999,2]
[333511078,1722221490445,-500.0,0.00010999,2]
[333511079,1722221490455,-631.62554195,0.00010999,2]
[333511080,1722221490465,-500.0,0.00010999,2]
[333511081,1722221490475,-592.53899478,0.00010999,2]
[333511082,1722221490485,-567.69208792,0.00010999,2]
[333511083,1722221490495,-500.0,0.00010999,2]
[333511084,1722221490506,-506.80282644,0.00010999,2]
[333511085,1722221490516,-507.7616395,0.00010999,2]
[333511086,1722221490525,-500.0,0.00010999,2]
[333511087,1722221490535,-500.0,0.00010999,2]
[333511088,1722221490545,-500.0,0.00010999,2]
[333511089,1722221490554,-500.0,0.00010999,2]
[333511090,1722221490564,-500.0,0.00010999,2]
[333511091,1722221490574,-505.27170105,0.00010999,2]
[333511092,1722221490583,-619.97440277,0.00010999,2]
[333511093,1722221490593,-500.0,0.00010999,2]
[333511094,1722221490603,-581.16682993,0.00010999,2]
[333511095,1722221490612,-500.0,0.00010999,2]
[333511096,1722221490622,-500.0,0.00010999,2]
[333511097,1722221490631,-396.95221941,0.00010999,2]
[333511098,1722221490904,-112.9824564,0.00010999,2]
[333511099,1722221490915,-500.0,0.00010999,2]
[333511100,1722221490924,-500.0,0.00010999,2]
[333511101,1722221490933,-587.52,0.00010999,2]
[333511102,1722221490943,-500.0,0.00010999,2]
[333511103,1722221490952,-247.40972541,0.00010999,2]
[333511104,1722221490964,-252.59027459,0.00010999,2]
[333511105,1722221490973,-500.0,0.00010999,2]
[333511106,1722221490983,-431.81580803,0.00010999,2]
[333511107,1722221490992,-500.0,0.00010999,2]
[333511108,1722221491002,-516.6273394,0.00010999,2]
[333511109,1722221491012,-500.0,0.00010999,2]
[333511110,1722221491021,-500.0,0.00010999,2]
[333511111,1722221491030,-244.87224184,0.00010999,2]
[333511112,1722221491039,-500.0,0.00010999,2]
[333511113,1722221491049,-503.00100729,0.00010999,2]
[333511114,1722221491058,-500.0,0.00010999,2]
[333511115,1722221491067,-500.0,0.00010999,2]
[333511116,1722221491077,-500.0,0.00010999,2]
[333511117,1722221491087,-500.0,0.00010999,2]
[333511118,1722221491096,-233.50408059,0.00010999,2]
[333511119,1722221491106,-500.0,0.00010999,2]
[333511120,1722221491115,-550.16482076,0.00010999,2]
[333511121,1722221491124,-500.0,0.00010999,2]
[333511122,1722221491133,-500.0,0.00010999,2]
[333511123,1722221491143,-500.0,0.00010999,2]
[333511124,1722221491152,-500.0,0.00010999,2]
[333511125,1722221491164,-500.0,0.00010999,2]
[333511126,1722221491173,-500.0,0.00010999,2]
[333511127,1722221491183,-273.68561509,0.00010999,2]
[333511128,1722221491192,-500.0,0.00010999,2]
[333511129,1722221491201,-500.0,0.00010999,2]
[333511130,1722221491210,-561.24865249,0.00010999,2]
[333511131,1722221491219,-536.17,0.00010999,2]
[333511132,1722221491229,-198.38510677,0.00010999,2]
[333511133,1722221491238,-500.0,0.00010999,2]
[333511134,1722221491247,-642.09,0.00010999,2]
[333511135,1722221491256,-504.50206288,0.00010999,2]
[333511136,1722221491265,-500.0,0.00010999,2]
[333511137,1722221491275,-500.0,0.00010999,2]
[333511138,1722221491285,-395.85967354,0.00010999,2]
[333511139,1722221491298,-104.14032646,0.00010999,2]
[333511140,1722221491307,-466.75967354,0.00010999,2]
[333511141,1722221491319,-33.24032646,0.00010999,2]
[333511142,1722221491328,-152.88214184,0.00010999,2]
[333511143,1722221491338,-243.50470303,0.00010999,2]
[333511144,1722221491348,-500.0,0.00010999,2]
[333511145,1722221491357,-500.0,0.00010999,2]
[333511146,1722221491367,-500.0,0.00010999,2]
[333511147,1722221491376,-500.0,0.00010999,2]
[333511148,1722221491387,-332.18376008,0.00010999,2]
[333511149,1722221491397,-500.0,0.00010999,2]
[333511150,1722221491407,-548.98961342,0.00010999,2]
[333511151,1722221491416,-287.11073144,0.00010999,2]
[333511152,1722221491430,-546.09423127,0.00010999,2]
[333511153,1722221491440,-500.0,0.00010999,2]
[333511154,1722221491450,-500.0,0.00010999,2]
[333511155,1722221491459,-500.0,0.00010999,2]
[333511156,1722221491470,-386.65600282,0.00010999,2]
[333511157,1722221491479,-500.0,0.00010999,2]
[333511158,1722221491489,-548.04057569,0.00010999,2]
[333511159,1722221491498,-510.95140685,0.00010999,2]
[333511160,1722221491509,-554.40678438,0.00010999,2]
[333511161,1722221491519,-500.0,0.00010999,2]
[333511162,1722221491529,-500.0,0.00010999,2]
[333511163,1722221491538,-505.46786168,0.00010999,2]
[333511164,1722221491548,-166.70849001,0.00010999,2]
[333511165,1722221491558,-500.0,0.00010999,2]
[333511166,1722221491567,-500.0,0.00010999,2]
[333511167,1722221491577,-523.14428778,0.00010999,2]
[333511168,1722221491587,-509.15247424,0.00010999,2]
[333511169,1722221491597,-500.0,0.00010999,2]
[333511170,1722221491606,-500.0,0.00010999,2]
[333511171,1722221491616,-500.0,0.00010999,2]
[333511172,1722221491626,-285.5994357,0.00010999,2]
[333511173,1722221491635,-353.38459676,0.00010999,2]
[333511174,1722221491645,-504.78195655,0.00010999,2]
[333511175,1722221491654,-509.53811619,0.00010999,2]
[333511176,1722221491666,-500.0,0.00010999,2]
[333511177,1722221491678,-500.0,0.00010999,2]
[333511178,1722221491686,-507.78514724,0.00010999,2]
[333511179,1722221491696,-166.86298899,0.00010999,2]
[333511180,1722221491706,-500.0,0.00010999,2]
[333511181,1722221491715,-501.8184389,0.00010999,2]
[333511182,1722221491725,-500.0,0.00010999,2]
[333511183,1722221491734,-500.0,0.00010999,2]
[333511184,1722221491743,-508.94397198,0.00010999,2]
[333511185,1722221491753,-530.70334175,0.00010999,2]
[333511186,1722221491763,-500.0,0.00010999,2]
[333511187,1722221491773,-500.0,0.00010999,2]
[333511188,1722221491782,-500.0,0.00010999,2]
[333511189,1722221491792,-528.41965593,0.00010999,2]
[333511190,1722221491802,-500.0,0.00010999,2]
[333511191,1722221491811,-500.0,0.00010999,2]
[333511192,1722221491820,-555.69305609,0.00010999,2]
[333511193,1722221491830,-508.51951776,0.00010999,2]
[333511194,1722221491840,-512.57863672,0.00010999,2]
[333511195,1722221491849,-500.0,0.00010999,2]
[333511196,1722221491859,-213.02490206,0.00010999,2]
[333511197,1722221491869,-500.0,0.00010999,2]
[333511198,1722221491878,-500.0,0.00010999,2]
[333511199,1722221491887,-310.9873915,0.00010999,2]
[333511200,1722221491896,-500.0,0.00010999,2]
[333511201,1722221491906,-500.0,0.00010999,2]
[333511202,1722221491916,-509.44034934,0.00010999,2]
[333511203,1722221491926,-500.0,0.00010999,2]
[333511204,1722221491935,-500.0,0.00010999,2]
[333511205,1722221491945,-506.33442104,0.00010999,2]
[333511206,1722221491954,-500.0,0.00010999,2]
[333511207,1722221491964,-500.0,0.00010999,2]
[333511208,1722221491973,-500.0,0.00010999,2]
[333511209,1722221491984,-578.86198859,0.00010999,2]
[333511210,1722221491993,-542.54209918,0.00010999,2]
[333511211,1722221492003,-504.06514754,0.00010999,2]
[333511212,1722221492012,-513.26653332,0.00010999,2]
[333511213,1722221492022,-511.78092505,0.00010999,2]
[333511214,1722221492031,-548.98148859,0.00010999,2]
[333511215,1722221492041,-361.45647806,0.00010999,2]
[333511216,1722221492051,-168.09086314,0.00010999,2]
[333511217,1722221492060,-480.32450184,0.00010999,2]
[333511218,1722221492070,-500.0,0.00010999,2]
[333511219,1722221492080,-547.49013421,0.00010999,2]
[333511220,1722221492090,-500.0,0.00010999,2]
[333511221,1722221492100,-533.17294287,0.00010999,2]
[333511222,1722221492109,-500.0,0.00010999,2]
[333511223,1722221492119,-596.24346857,0.00010999,2]
[333511224,1722221492128,-510.99471531,0.00010999,2]
[333511225,1722221492138,-500.0,0.00010999,2]
[333511226,1722221492147,-500.0,0.00010999,2]
[333511227,1722221492160,-206.5256617,0.00010999,2]
[333511228,1722221492171,-500.0,0.00010999,2]
[333511229,1722221492180,-195.11339019,0.00010999,2]
[333511230,1722221492190,-500.0,0.00010999,2]
[333511231,1722221492199,-500.0,0.00010999,2]
[333511232,1722221492209,-372.50400454,0.00010999,2]
[333511233,1722221492219,-500.0,0.00010999,2]
[333511234,1722221492229,-500.0,0.00010999,2]
[333511235,1722221492238,-540.93830426,0.00010999,2]
[333511236,1722221492247,-500.0,0.00010999,2]
[333511237,1722221492257,-500.0,0.00010999,2]
[333511238,1722221492267,-500.0,0.00010999,2]
[333511239,1722221492277,-500.0,0.00010999,2]
[333511240,1722221492286,-378.33,0.00010999,2]
[333511241,1722221492296,-500.0,0.00010999,2]
[333511242,1722221492305,-588.63697073,0.00010999,2]
[333511243,1722221492315,-500.0,0.00010999,2]
[333511244,1722221492324,-523.32735351,0.00010999,2]
[333511245,1722221492333,-500.0,0.00010999,2]
[333511246,1722221492343,-500.0,0.00010999,2]
[333511247,1722221492353,-535.31774366,0.00010999,2]
[333511248,1722221492362,-542.22777334,0.00010999,2]
[333511249,1722221492372,-500.0,0.00010999,2]
[333511250,1722221492381,-500.0,0.00010999,2]
[333511251,1722221492391,-511.59500752,0.00010999,2]
[333511252,1722221492400,-544.30428154,0.00010999,2]
[333511253,1722221492411,-500.0,0.00010999,2]
[333511254,1722221492423,-500.0,0.00010999,2]
[333511255,1722221492433,-500.0,0.00010999,2]
[333511256,1722221492443,-500.0,0.00010999,2]
[333511257,1722221492453,-500.0,0.00010999,2]
[333511258,1722221492463,-401.86937256,0.00010999,2]
[333511259,1722221492473,-500.0,0.00010999,2]
[333511260,1722221492483,-553.49553448,0.00010999,2]
[333511261,1722221492493,-482.88277521,0.00010999,2]
[333511262,1722221492504,-500.0,0.00010999,2]
[333511263,1722221492514,-559.99862257,0.00010999,2]
[333511264,1722221492523,-376.93257069,0.00010999,2]
[333511265,1722221492533,-500.0,0.00010999,2]
[333511266,1722221492542,-533.41390563,0.00010999,2]
[333511267,1722221492552,-613.13163496,0.00010999,2]
[333511268,1722221492562,-500.0,0.00010999,2]
[333511269,1722221492572,-533.67253485,0.00010999,2]
[333511270,1722221492581,-548.35252678,0.00010999,2]
[333511271,1722221492637,-500.0,0.00010999,2]
[333511272,1722221492646,-504.73120578,0.00010999,2]
[333511273,1722221492656,-500.0,0.00010999,2]
[333511274,1722221492666,-500.0,0.00010999,2]
[333511275,1722221492676,-500.0,0.00010999,2]
[333511276,1722221492685,-502.76741498,0.00010999,2]
[333511277,1722221492695,-500.0,0.00010999,2]
[333511278,1722221492705,-500.0,0.00010999,2]
[333511279,1722221492714,-500.0,0.00010999,2]
[333511280,1722221492723,-500.0,0.00010999,2]
[333511281,1722221492733,-500.0,0.00010999,2]
[333511282,1722221492742,-500.0,0.00010999,2]
[333511283,1722221492752,-500.0,0.00010999,2]
[333511284,1722221492762,-500.0,0.00010999,2]
[333511285,1722221492772,-525.81290551,0.00010999,2]
[333511286,1722221492781,-514.15578651,0.00010999,2]
[333511287,1722221492790,-522.86083322,0.00010999,2]
[333511288,1722221492800,-527.39491198,0.00010999,2]
[333511289,1722221492809,-512.93925164,0.00010999,2]
[333511290,1722221492819,-502.66274131,0.00010999,2]
[333511291,1722221492828,-499.25539785,0.00010999,2]
[333511292,1722221492837,-500.0,0.00010999,2]
[333511293,1722221492846,-500.0,0.00010999,2]
[333511294,1722221492856,-500.0,0.00010999,2]
[333511295,1722221492865,-500.0,0.00010999,2]
[333511296,1722221492874,-482.52674819,0.00010999,2]
[333511297,1722221492884,-516.44232432,0.00010999,2]
[333511298,1722221492893,-462.34972576,0.00010999,2]
[333511299,1722221492903,-500.0,0.00010999,2]
[333511300,1722221492913,-500.0,0.00010999,2]
[333511301,1722221492923,-411.23103153,0.00010999,2]
[333511302,1722221492933,-2253.46332413,0.00010999,2]
[333511303,1722221492942,-510.05368403,0.00010999,2]
[333511304,1722221492951,-274.49252177,0.00010999,2]
[333511305,1722221492961,-423.99509018,0.00010999,2]
[333511306,1722221492971,-500.0,0.00010999,2]
[333511307,1722221492980,-383.63016375,0.00010999,2]
[333511308,1722221492990,-550.29286808,0.00010999,2]
[333511309,1722221492999,-500.0,0.00010999,2]
[333511310,1722221493009,-500.0,0.00010999,2]
[333511311,1722221493018,-500.0,0.00010999,2]
[333511312,1722221493028,-500.0,0.00010999,2]
[333511313,1722221493037,-500.0,0.00010999,2]
[333511314,1722221493046,-202.67,0.00010999,2]
[333511315,1722221493056,-500.0,0.00010999,2]
[333511316,1722221493065,-500.0,0.00010999,2]
[333511317,1722221493075,-151.0,0.00010999,2]
[333511318,1722221493085,-151.0,0.00010999,2]
[333511319,1722221493095,-241.2,0.00010999,2]
[333511320,1722221493105,-774.56,0.00010999,2]
[333511321,1722221493115,-774.56,0.00010999,2]
[333511322,1722221493125,-774.56,0.00010999,2]
[333511323,1722221493135,-774.56,0.00010999,2]
[333511324,1722221493145,-774.56,0.00010999,2]
[333511325,1722221493155,-774.56,0.00010999,2]
[333511326,1722221493164,-774.56,0.00010999,2]
[333511327,1722221493174,-774.56,0.00010999,2]
[333511328,1722221493184,-774.56,0.00010999,2]
[333511329,1722221493193,-774.56,0.00010999,2]
[333511330,1722221493203,-774.56,0.00010999,2]
[333511331,1722221493213,-774.62,0.00010999,2]
[333511332,1722221493222,-1222.23,0.00010999,2]
[333511333,1722221493231,-1222.23,0.00010999,2]
[333511334,1722221493241,-1222.23,0.00010999,2]
[333511335,1722221493250,-1222.23,0.00010999,2]
[333511336,1722221493260,-1222.23,0.00010999,2]
[333511337,1722221493269,-1222.23,0.00010999,2]
[333511338,1722221493279,-1222.23,0.00010999,2]
[333511339,1722221493289,-1222.23,0.00010999,2]
[333511340,1722221493299,-1222.23,0.00010999,2]
[333511341,1722221493309,-1222.23,0.00010999,2]
[333511342,1722221493318,-1222.23,0.00010999,2]
[333511343,1722221493328,-1222.3194,0.00010999,2]
[333511344,1722221493337,-151.0,0.00010999,2]
[333511345,1722221493347,-151.0,0.00010999,2]
[333511346,1722221493356,-837.94,0.00010999,2]
[333511347,1722221493365,-837.94,0.00010999,2]
[333511348,1722221493375,-837.94,0.00010999,2]
[333511349,1722221493384,-837.94,0.00010999,2]
[333511350,1722221493393,-837.94,0.00010999,2]
[333511351,1722221493403,-837.94,0.00010999,2]
[333511352,1722221493414,-837.94,0.00010999,2]
[333511353,1722221493428,-837.94,0.00010999,2]
[333511354,1722221493438,-837.94,0.00010999,2]
[333511355,1722221493447,-837.94,0.00010999,2]
[333511356,1722221493456,-837.94,0.00010999,2]
[333511357,1722221493466,-838.11882216,0.00010999,2]
[333511358,1722221493475,-2538.28,0.00010999,2]
[333511359,1722221493485,-2538.28,0.00010999,2]
[333511360,1722221493494,-2538.28,0.00010999,2]
[333511361,1722221493506,-2538.28,0.00010999,2]
[333511362,1722221493517,-2538.28,0.00010999,2]
[333511363,1722221493527,-2538.28,0.00010999,2]
[333511364,1722221493536,-2538.28,0.00010999,2]
[333511365,1722221493546,-2538.28,0.00010999,2]
[333511366,1722221493555,-2538.28,0.00010999,2]
[333511367,1722221493564,-2538.28,0.00010999,2]
[333511368,1722221493574,-2538.28,0.00010999,2]
[333511369,1722221493583,-2538.36031488,0.00010999,2]
[333511370,1722221493594,-500.0,0.00010999,2]
[333511371,1722221493603,-500.0,0.00010999,2]
[333511372,1722221493613,-500.0,0.00010999,2]
[333511373,1722221493622,-500.0,0.00010999,2]
[333511374,1722221493632,-500.0,0.00010999,2]
[333511375,1722221493641,-500.0,0.00010999,2]
[333511376,1722221493650,-500.0,0.00010999,2]
[333511377,1722221493661,-500.0,0.00010999,2]
[333511378,1722221493670,-500.0,0.00010999,2]
[333511379,1722221493680,-500.0,0.00010999,2]
[333511380,1722221493690,-558.02000218,0.00010999,2]
[333511381,1722221493701,-500.0,0.00010999,2]
[333511382,1722221493711,-500.0,0.00010999,2]
[333511383,1722221493721,-500.0,0.00010999,2]
[333511384,1722221493731,-500.0,0.00010999,2]
[333511385,1722221493741,-500.0,0.00010999,2]
[333511386,1722221493751,-500.0,0.00010999,2]
[333511387,1722221493760,-500.0,0.00010999,2]
[333511388,1722221493770,-500.0,0.00010999,2]
[333511389,1722221493780,-340.4,0.00010999,2]
[333511390,1722221493790,-500.0,0.00010999,2]
[333511391,1722221493800,-500.0,0.00010999,2]
[333511392,1722221493809,-500.0,0.00010999,2]
[333511393,1722221493819,-500.0,0.00010999,2]
[333511394,1722221493828,-500.0,0.00010999,2]
[333511395,1722221493837,-500.0,0.00010999,2]
[333511396,1722221493847,-500.0,0.00010999,2]
[333511397,1722221493858,-378.50217102,0.00010999,2]
[333511398,1722221493867,-1093.42,0.00010999,2]
[333511399,1722221493877,-1093.42,0.00010999,2]
[333511400,1722221493887,-1093.42,0.00010999,2]
[333511401,1722221493897,-1093.42,0.00010999,2]
[333511402,1722221493908,-1093.42,0.00010999,2]
[333511403,1722221493918,-1093.42,0.00010999,2]
[333511404,1722221493928,-500.0,0.00010999,2]
[333511405,1722221493938,-1093.42,0.00010999,2]
[333511406,1722221493948,-500.0,0.00010999,2]
[333511407,1722221493958,-1093.42,0.00010999,2]
[333511408,1722221493968,-517.30570727,0.00010999,2]
[333511409,1722221493978,-1093.42,0.00010999,2]
[333511410,1722221493988,-1093.42,0.00010999,2]
[333511411,1722221493997,-1093.42,0.00010999,2]
[333511412,1722221494007,-1093.42414497,0.00010999,2]
[333511413,1722221494017,-995.86,0.00010999,2]
[333511414,1722221494027,-995.86,0.00010999,2]
[333511415,1722221494036,-995.86,0.00010999,2]
[333511416,1722221494046,-995.86,0.00010999,2]
[333511417,1722221494056,-995.86,0.00010999,2]
[333511418,1722221494065,-995.86,0.00010999,2]
[333511419,1722221494075,-995.86,0.00010999,2]
[333511420,1722221494085,-995.86,0.00010999,2]
[333511421,1722221494095,-995.86,0.00010999,2]
[333511422,1722221494106,-995.86,0.00010999,2]
[333511423,1722221494116,-995.86,0.00010999,2]
[333511424,1722221494126,-995.91965995,0.00010999,2]
[333511425,1722221494136,-500.0,0.00010999,2]
[333511426,1722221494146,-500.0,0.00010999,2]
[333511427,1722221494158,-500.0,0.00010999,2]
[333511428,1722221494168,-500.0,0.00010999,2]
[333511429,1722221494179,-500.0,0.00010999,2]
[333511430,1722221494189,-500.0,0.00010999,2]
[333511431,1722221494199,-547.84,0.00010999,2]
[333511432,1722221494209,-500.0,0.00010999,2]
[333511433,1722221494219,-500.0,0.00010999,2]
[333511434,1722221494229,-500.0,0.00010999,2]
[333511435,1722221494239,-500.0,0.00010999,2]
[333511436,1722221494249,-323.36,0.00010999,2]
[333511437,1722221494260,-718.18,0.00010999,2]
[333511438,1722221494270,-718.18,0.00010999,2]
[333511439,1722221494280,-718.18,0.00010999,2]
[333511440,1722221494290,-718.18,0.00010999,2]
[333511441,1722221494299,-718.18,0.00010999,2]
[333511442,1722221494309,-718.18,0.00010999,2]
[333511443,1722221494319,-718.18,0.00010999,2]
[333511444,1722221494328,-718.18,0.00010999,2]
[333511445,1722221494338,-718.18,0.00010999,2]
[333511446,1722221494348,-718.18,0.00010999,2]
[333511447,1722221494358,-718.18,0.00010999,2]
[333511448,1722221494367,-718.35601332,0.00010999,2]
[333511449,1722221494377,-500.0,0.00010999,2]
[333511450,1722221494387,-500.0,0.00010999,2]
[333511451,1722221494397,-500.0,0.00010999,2]
[333511452,1722221494409,-221.36,0.00010999,2]
[333511453,1722221494420,-297.01276336,0.00010999,2]
[333511454,1722221494443,-202.98723664,0.00010999,2]
[333511455,1722221494453,-572.78492924,0.00010999,2]
[333511456,1722221494463,-57.47783412,0.00010999,2]
[333511457,1722221494481,-443.84216588,0.00010999,2]
[333511458,1722221494491,-501.32,0.00010999,2]
[333511459,1722221494503,-501.32,0.00010999,2]
[333511460,1722221494513,-501.32,0.00010999,2]
[333511461,1722221494523,-501.32,0.00010999,2]
[333511462,1722221494534,-501.32,0.00010999,2]
[333511463,1722221494544,-501.32,0.00010999,2]
[333511464,1722221494554,-501.32,0.00010999,2]
[333511465,1722221494564,-501.32,0.00010999,2]
[333511466,1722221494574,-501.32,0.00010999,2]
[333511467,1722221494584,-501.32,0.00010999,2]
[333511468,1722221494593,-501.4,0.00010999,2]
[333511469,1722221494603,-500.0,0.00010999,2]
[333511470,1722221494613,-500.0,0.00010999,2]
[333511471,1722221494623,-500.0,0.00010999,2]
[333511472,1722221494633,-500.0,0.00010999,2]
[333511473,1722221494643,-229.32304512,0.00010999,2]
[333511474,1722221494656,-270.67695488,0.00010999,2]
[333511475,1722221494669,-500.0,0.00010999,2]
[333511476,1722221494682,-500.0,0.00010999,2]
[333511477,1722221494692,-186.55462512,0.00010999,2]
[333511478,1722221494702,-581.06095561,0.00010999,2]
[333511479,1722221494712,-500.0,0.00010999,2]
[333511480,1722221494722,-500.0,0.00010999,2]
[333511481,1722221494732,-500.0,0.00010999,2]
[333511482,1722221494742,-166.19213531,0.00010999,2]
[333511483,1722221494752,-174.10268177,0.00010999,2]
[333511484,1722221495913,52333.37877989,6.781e-05,7]
[333511485,1722221495944,18646.61137731,6.781e-05,7]
[333511486,1722221496632,155.84,0.0001789,120]
[333511487,1722221496667,505.0,0.0001789,120]
[333511488,1722221496712,505.0,0.0001788,120]
[333511489,1722221496750,505.0,0.0001787,120]
[333511490,1722221496788,505.0,0.0001789,120]
[333511491,1722221496845,505.0,0.0001788,120]
[333511492,1722221496936,505.0,0.0001787,120]
[333511493,1722221496984,505.0,0.0001789,120]
[333511494,1722221497035,505.0,0.0001788,120]
[333511495,1722221497121,150.5,0.0001789,120]
[333511496,1722221497161,505.0,0.0001789,120]
[333511497,1722221497219,506.97,0.0001788,120]
[333511498,1722221497252,150.5,0.0001788,120]
[333511499,1722221497321,150.5,0.0001787,120]
[333511500,1722221497353,241.09,0.0001789,120]
[333511503,1722221515057,202.79035612,0.00010903,30]
[333511504,1722221593914,154.86,0.0001789,120]
[333511506,1722221713092,154.86,0.0001789,120]
[333511507,1722221958944,-152.0,0.00014431,20]
[333511508,1722221958966,-152.0,0.00014526,21]
[333511509,1722221958987,-615.0,0.00014589,20]
[333511510,1722221959007,-152.0,0.00014622,22]
[333511511,1722221989859,-152.0,0.00013952,15]
[333511512,1722221989883,-152.0,0.00014048,16]
[333511513,1722221989908,-152.0,0.00014144,17]
[333511514,1722221989935,-152.0,0.00014239,18]
[333511515,1722221989961,-152.0,0.00014335,19]
[333511516,1722222000907,-152.0,0.00013857,14]
[333511517,1722222000940,-578.68,0.00014266,14]
[333511518,1722222000974,-9542.04518902,0.00015,14]
[333511519,1722222014001,-152.0,0.00013474,10]
[333511520,1722222014025,-152.0,0.00013569,11]
[333511521,1722222014046,-152.0,0.00013665,12]
[333511522,1722222014077,-152.0,0.00013761,13]
[333511523,1722222014114,-5660.0,0.00015,10]
[333511524,1722222014134,-1198.67215053,0.00015,10]
[333511525,1722222014156,-1009.0,0.00015,10]
[333511527,1722222019360,150.0,0.00015,15]